bitfinex-derivatives/quotes_BTCF0:USTF0_20240923
["timestamp","ask_amount","ask_price","bid_price","bid_amount"]
[1727104581241,0.3608,63360.0,63359.0,0.078911]
[1727104582746,0.56971,63360.0,63359.0,0.079911]
[1727104582949,0.64862,63360.0,63359.0,0.001]
[1727104583754,0.65162,63360.0,63359.0,0.002]
[1727104584139,0.57271,63360.0,63359.0,0.002]
[1727104584443,0.57271,63360.0,63359.0,0.080911]
[1727104584843,0.57271,63360.0,63359.0,0.079911]
[1727104585035,0.57271,63360.0,63359.0,0.080911]
[1727104585435,0.57271,63360.0,63359.0,0.079911]
[1727104585641,0.57271,63360.0,63359.0,0.080911]
[1727104586842,0.65162,63360.0,63359.0,0.002]
[1727104587250,0.44271,63360.0,63359.0,0.002]
[1727104587438,0.43971,63360.0,63359.0,0.001]
[1727104587749,0.44171,63360.0,63359.0,0.001]
[1727104587946,0.44171,63360.0,63359.0,0.080911]
[1727104588551,0.44171,63360.0,63359.0,0.002]
[1727104589237,0.3628,63360.0,63359.0,0.080911]
[1727104591446,0.002,63360.0,63359.0,0.289822]
[1727104591643,0.3608,63366.0,63365.0,0.078903]
[1727104594058,0.01719563,63370.0,63369.0,0.078898]
[1727104594259,0.0458,63373.0,63365.0,0.3608]
[1727104594260,0.20273861,63373.0,63370.0,0.078897]
[1727104594463,0.078895,63372.0,63365.0,0.3618]
[1727104594956,0.0789,63368.0,63367.0,0.078901]
[1727104595547,0.15694061,63372.0,63365.0,0.3618]
[1727104595755,0.07804461,63372.0,63371.0,0.078896]
[1727104595959,0.002,63372.0,63371.0,0.078896]
[1727104596759,0.09551852,63373.0,63365.0,0.3618]
[1727104596760,0.09551852,63373.0,63372.0,0.078895]
[1727104597064,0.01747391,63373.0,63372.0,0.078895]
[1727104597251,0.078891,63375.0,63374.0,0.078892]
[1727104597452,0.02558011,63375.0,63374.0,0.078892]
[1727104597756,0.02558011,63375.0,63371.0,0.002]
[1727104597757,0.07803997,63376.0,63375.0,0.078891]
[1727104598062,0.07803997,63379.0,63378.0,0.078887]
[1727104598253,0.14505633,63380.0,63379.0,0.078886]
[1727104598456,0.06701636,63380.0,63379.0,0.078886]
[1727104598649,0.04996784,63380.0,63379.0,0.078886]
[1727104598952,0.00236784,63380.0,63379.0,0.078886]
[1727104599452,0.00436784,63380.0,63379.0,0.079886]
[1727104601061,0.08325284,63380.0,63379.0,0.079886]
[1727104601860,0.08325284,63380.0,63379.0,0.080886]
[1727104602572,0.16213784,63380.0,63379.0,0.002]
[1727104602866,0.24011685,63380.0,63379.0,0.002]
[1727104603170,0.078898,63371.0,63370.0,0.078897]
[1727104603354,0.569698,63371.0,63370.0,0.078897]
[1727104603860,0.439698,63371.0,63370.0,0.078897]
[1727104604364,0.3608,63371.0,63370.0,0.157794]
[1727104604559,0.3608,63371.0,63370.0,0.078897]
[1727104604963,0.3608,63371.0,63370.0,0.079897]
[1727104605451,0.3638,63371.0,63370.0,0.080897]
[1727104606461,0.442696,63371.0,63370.0,0.080897]
[1727104606971,0.07891,63360.0,63359.0,0.0037]
[1727104607167,0.07891,63360.0,63357.0,0.078913]
[1727104607168,0.078912,63358.0,63357.0,0.078913]
[1727104607371,0.078913,63357.0,63354.0,0.09590466]
[1727104607665,0.078923,63350.0,63345.0,0.0037]
[1727104607865,0.13,63349.0,63344.0,0.03157437]
[1727104608066,0.078928,63345.0,63344.0,0.03157437]
[1727104608463,0.126528,63345.0,63344.0,0.03157437]
[1727104608660,0.125528,63345.0,63344.0,0.03157437]
[1727104609263,0.125528,63345.0,63344.0,0.03357437]
[1727104610157,0.129528,63345.0,63344.0,0.03257437]
[1727104610865,0.07794,63336.0,63328.0,0.0037]
[1727104611067,0.13,63332.0,63326.0,0.439751]
[1727104611265,0.43874,63336.0,63325.0,0.00236831]
[1727104611266,0.208951,63327.0,63325.0,0.00236831]
[1727104611462,0.13,63327.0,63325.0,0.00236831]
[1727104611767,0.129,63327.0,63325.0,0.00236831]
[1727104611972,0.129,63327.0,63314.0,0.078966]
[1727104611973,0.4898,63327.0,63314.0,0.078966]
[1727104612179,0.13,63315.0,63310.0,0.078971]
[1727104612474,0.184,63313.0,63310.0,0.078971]
[1727104612659,0.078965,63316.0,63309.0,0.3608]
[1727104612972,0.19,63317.0,63313.0,0.078968]
[1727104613278,0.001,63315.0,63313.0,0.078968]
[1727104613860,0.078977,63307.0,63303.0,0.078981]
[1727104614059,0.439777,63307.0,63303.0,0.078981]
[1727104614366,0.078977,63306.0,63303.0,0.078981]
[1727104614566,0.19,63304.0,63302.0,0.078981]
[1727104615160,0.189,63304.0,63302.0,0.078981]
[1727104615361,0.189,63304.0,63297.0,0.00236953]
[1727104615570,0.189,63304.0,63303.0,0.002]
[1727104615571,0.26798,63304.0,63303.0,0.002]
[1727104615960,0.27498,63304.0,63302.0,0.001]
[1727104616173,0.012,63304.0,63303.0,0.078981]
[1727104616864,0.015,63304.0,63303.0,0.079981]
[1727104617264,0.03191702,63304.0,63303.0,0.079981]
[1727104617464,0.283979,63304.0,63303.0,0.001]
[1727104617672,0.283979,63304.0,63303.0,0.002]
[1727104618582,0.69617184,63304.0,63297.0,0.00236953]
[1727104618780,0.5508,63298.0,63297.0,0.00236953]
[1727104619585,0.629787,63298.0,63297.0,0.00236953]
[1727104619997,0.629787,63298.0,63292.0,0.078994]
[1727104619998,0.078993,63293.0,63292.0,0.078994]
[1727104620183,0.268993,63293.0,63292.0,0.078994]
[1727104620480,0.078995,63292.0,63278.0,0.079012]
[1727104620667,0.5508,63279.0,63278.0,0.079012]
[1727104620867,0.5498,63279.0,63278.0,0.079012]
[1727104621270,0.3598,63279.0,63278.0,0.079012]
[1727104621579,0.079006,63283.0,63274.0,0.01702665]
[1727104621782,0.079006,63283.0,63282.0,0.079007]
[1727104622077,0.3608,63286.0,63269.0,0.439822]
[1727104622311,0.079003,63285.0,63283.0,0.079005]
[1727104622467,0.3608,63286.0,63285.0,0.079003]
[1727104623488,0.3618,63286.0,63285.0,0.079003]
[1727104623668,0.001,63286.0,63285.0,0.079003]
[1727104623871,0.3608,63298.0,63285.0,0.079003]
[1727104624069,0.3608,63298.0,63297.0,0.078988]
[1727104624284,0.00237076,63306.0,63302.0,0.078981]
[1727104624579,0.01968276,63306.0,63292.0,0.078994]
[1727104624782,0.01968276,63306.0,63303.0,0.07898]
[1727104624783,0.00237076,63306.0,63303.0,0.07898]
[1727104624975,0.078979,63305.0,63303.0,0.07898]
[1727104625170,0.00237076,63306.0,63292.0,0.3608]
[1727104625481,0.00237076,63306.0,63302.0,0.078982]
[1727104625685,0.01637076,63306.0,63302.0,0.079982]
[1727104625886,0.03037076,63306.0,63302.0,0.079982]
[1727104626086,0.03037076,63306.0,63303.0,0.078981]
[1727104626385,0.10934876,63306.0,63303.0,0.078981]
[1727104626583,0.03037076,63306.0,63305.0,0.078978]
[1727104626776,0.03037076,63306.0,63302.0,0.001]
[1727104627079,0.078981,63303.0,63302.0,0.001]
[1727104627284,0.078983,63301.0,63298.0,0.078987]
[1727104627484,0.078985,63300.0,63298.0,0.078987]
[1727104627785,0.078985,63300.0,63299.0,0.078986]
[1727104628473,0.19,63303.0,63300.0,0.078984]
[1727104628474,0.013,63301.0,63300.0,0.078984]
[1727104629879,0.027,63301.0,63300.0,0.078984]
[1727104630076,0.014,63301.0,63300.0,0.078984]
[1727104630778,0.026,63301.0,63300.0,0.079984]
[1727104631089,0.19,63313.0,63300.0,0.079984]
[1727104631090,0.3608,63313.0,63312.0,0.07897]
[1727104631385,0.37772537,63313.0,63312.0,0.07897]
[1727104632387,0.3748,63313.0,63312.0,0.07897]
[1727104632896,0.3748,63313.0,63312.0,0.51874]
[1727104632897,0.014,63313.0,63312.0,0.51874]
[1727104633083,0.01736286,63318.0,63317.0,0.078963]
[1727104633392,0.01736286,63318.0,63312.0,0.43977]
[1727104633393,0.19,63318.0,63312.0,0.36172]
[1727104633583,0.19,63313.0,63312.0,0.07897]
[1727104633889,0.197,63313.0,63312.0,0.07997]
[1727104634090,0.007,63313.0,63312.0,0.07997]
[1727104634494,0.3608,63319.0,63298.0,0.19]
[1727104634495,0.19,63315.0,63298.0,0.19]
[1727104634690,0.19,63315.0,63312.0,0.078969]
[1727104634691,0.078967,63314.0,63312.0,0.078969]
[1727104635298,0.447768,63313.0,63312.0,0.001]
[1727104635487,0.526736,63313.0,63303.0,0.078981]
[1727104635693,0.3608,63306.0,63303.0,0.078981]
[1727104635896,0.078979,63304.0,63303.0,0.078981]
[1727104636099,0.078984,63300.0,63299.0,0.00236961]
[1727104636300,0.078984,63300.0,63293.0,0.078993]
[1727104636301,0.078992,63294.0,63293.0,0.078993]
[1727104636498,0.19,63294.0,63293.0,0.078993]
[1727104636899,0.19,63294.0,63286.0,0.0476]
[1727104636900,0.3608,63296.0,63295.0,0.078991]
[1727104637288,0.078981,63303.0,63291.0,0.078995]
[1727104637490,0.008,63294.0,63293.0,0.079993]
[1727104637900,0.008,63294.0,63289.0,0.078998]
[1727104637901,0.078993,63294.0,63289.0,0.078998]
[1727104638104,0.5508,63291.0,63289.0,0.078998]
[1727104638293,0.5508,63291.0,63288.0,0.078999]
[1727104638495,0.5508,63291.0,63281.0,0.3608]
[1727104638496,0.5508,63291.0,63289.0,0.078998]
[1727104638702,0.5508,63291.0,63290.0,0.078997]
[1727104639203,0.3608,63291.0,63290.0,0.078997]
[1727104639703,0.009,63294.0,63283.0,0.06573468]
[1727104639920,0.008,63291.0,63290.0,0.079997]
[1727104640399,0.016,63291.0,63290.0,0.079997]
[1727104640800,0.008,63291.0,63290.0,0.079997]
[1727104641705,0.008,63291.0,63290.0,0.002]
[1727104641706,0.095996,63291.0,63290.0,0.002]
[1727104642208,0.087996,63291.0,63290.0,0.001]
[1727104642404,0.087996,63291.0,63290.0,0.079997]
[1727104643109,0.095996,63291.0,63290.0,0.080997]
[1727104643410,0.017,63291.0,63290.0,0.080997]
[1727104645198,0.017,63291.0,63290.0,0.09773525]
[1727104648297,0.095996,63291.0,63290.0,0.09773525]
[1727104648710,0.095996,63291.0,63290.0,0.002]
[1727104649010,0.095996,63291.0,63281.0,0.3616]
[1727104649011,0.079002,63286.0,63281.0,0.40797908]
[1727104649308,0.079009,63280.0,63279.0,0.07901]
[1727104649899,0.269007,63282.0,63280.0,0.079009]
[1727104650209,0.078008,63281.0,63280.0,0.079009]
[1727104651314,0.19,63282.0,63277.0,0.01937879]
[1727104651315,0.079012,63279.0,63277.0,0.01937879]
[1727104651605,0.271007,63282.0,63281.0,0.079008]
[1727104651809,0.079011,63279.0,63278.0,0.079012]
[1727104652005,0.076011,63279.0,63278.0,0.079012]
[1727104652696,0.079012,63278.0,63277.0,0.00237051]
[1727104653109,0.158024,63278.0,63277.0,0.00237051]
[1727104653509,0.157024,63278.0,63277.0,0.00237051]
[1727104653707,0.078012,63278.0,63277.0,0.00237051]
[1727104654602,0.078012,63278.0,63277.0,0.001]
[1727104655400,0.157024,63278.0,63277.0,0.005]
[1727104655908,0.078012,63278.0,63277.0,0.005]
[1727104656109,0.078012,63278.0,63277.0,0.084013]
[1727104656410,0.078012,63278.0,63277.0,0.005]
[1727104656808,0.078012,63278.0,63277.0,0.003]
[1727104657114,0.157024,63278.0,63277.0,0.003]
[1727104657313,0.269026,63267.0,63266.0,0.082727]
[1727104657510,0.5508,63267.0,63266.0,0.079027]
[1727104658016,0.629826,63267.0,63266.0,0.079027]
[1727104658714,0.5508,63267.0,63266.0,0.084027]
[1727104659011,0.630826,63267.0,63266.0,0.090027]
[1727104659615,0.629826,63267.0,63266.0,0.084027]
[1727104659816,0.630826,63267.0,63266.0,0.090027]
[1727104660019,0.64824357,63267.0,63266.0,0.090027]
[1727104660204,0.64824357,63267.0,63255.0,0.0497]
[1727104660205,0.93001757,63267.0,63253.0,0.0037]
[1727104660405,0.93001757,63267.0,63256.0,0.079038]
[1727104660406,0.3608,63258.0,63256.0,0.079038]
[1727104660601,0.3608,63258.0,63249.0,0.079048]
[1727104660913,0.3608,63258.0,63246.0,0.06316396]
[1727104660914,0.3608,63258.0,63246.0,0.079051]
[1727104661122,0.07905,63248.0,63246.0,0.079051]
[1727104661419,0.07904,63256.0,63244.0,0.3608]
[1727104661420,0.079041,63255.0,63244.0,0.3608]
[1727104661715,0.0987,63257.0,63236.0,0.0037]
[1727104661716,0.3608,63249.0,63236.0,0.0037]
[1727104661911,0.3608,63249.0,63231.0,0.3645]
[1727104661912,0.183,63239.0,63231.0,0.3608]
[1727104662112,0.079058,63241.0,63231.0,0.3608]
[1727104662306,0.079058,63241.0,63239.0,0.07906]
[1727104662817,0.3608,63243.0,63242.0,0.079057]
[1727104663114,0.07905,63248.0,63237.0,0.3608]
[1727104663315,0.07905,63248.0,63244.0,0.079054]
[1727104663512,0.19,63247.0,63244.0,0.079054]
[1727104663710,0.19,63247.0,63237.0,0.3608]
[1727104664211,0.01711445,63248.0,63247.0,0.079051]
[1727104664415,0.001,63249.0,63248.0,0.079049]
[1727104664627,0.01830936,63249.0,63248.0,0.079049]
[1727104664808,0.00237245,63252.0,63249.0,0.079048]
[1727104665329,0.20922518,63252.0,63243.0,0.37789216]
[1727104665508,0.20922518,63252.0,63227.0,0.06720545]
[1727104665509,0.3608,63244.0,63231.0,0.3608]
[1727104665705,0.19,63239.0,63233.0,0.079067]
[1727104666507,0.5508,63244.0,63231.0,0.3608]
[1727104666716,0.5508,63244.0,63240.0,0.079059]
[1727104666717,0.3608,63244.0,63240.0,0.079059]
[1727104667012,0.3608,63244.0,63231.0,0.3608]
[1727104667215,0.3608,63244.0,63231.0,0.43987]
[1727104667216,0.19,63240.0,63231.0,0.43987]
[1727104667534,0.079066,63235.0,63231.0,0.43987]
[1727104667709,0.19,63240.0,63231.0,0.3608]
[1727104667907,0.079069,63232.0,63231.0,0.3608]
[1727104668117,0.079069,63232.0,63228.0,0.127973]
[1727104669309,0.080069,63232.0,63228.0,0.127973]
[1727104669503,0.079076,63227.0,63224.0,0.079079]
[1727104669714,0.19,63229.0,63223.0,0.01750433]
[1727104670022,0.001,63232.0,63226.0,0.079077]
[1727104670316,0.002,63232.0,63226.0,0.079077]
[1727104670513,0.079074,63229.0,63226.0,0.079077]
[1727104670908,0.079074,63229.0,63221.0,0.37756124]
[1727104670909,0.079075,63228.0,63221.0,0.37756124]
[1727104671109,0.079076,63227.0,63223.0,0.07908]
[1727104671515,0.079078,63225.0,63221.0,0.3608]
[1727104671721,0.079078,63225.0,63224.0,0.001]
[1727104672419,0.079078,63225.0,63223.0,0.001]
[1727104672606,0.001,63227.0,63226.0,0.079077]
[1727104673121,0.001,63227.0,63226.0,0.553557]
[1727104673426,0.001,63225.0,63224.0,0.080079]
[1727104673719,0.001,63225.0,63224.0,0.159158]
[1727104673915,0.001,63225.0,63224.0,0.633638]
[1727104674708,0.001,63225.0,63224.0,0.902717]
[1727104674911,0.07906,63240.0,63226.0,0.079077]
[1727104675111,0.07906,63240.0,63227.0,0.0489]
[1727104675314,0.01710765,63240.0,63239.0,0.079061]
[1727104675516,0.0037,63253.0,63243.0,0.079056]
[1727104675721,0.3608,63262.0,63239.0,0.3608]
[1727104675722,0.0023722,63258.0,63252.0,0.19]
[1727104675917,0.0023722,63258.0,63257.0,0.079038]
[1727104676222,0.0023722,63258.0,63257.0,0.269038]
[1727104676409,0.37782896,63262.0,63257.0,0.19]
[1727104676611,0.01702896,63262.0,63255.0,0.3608]
[1727104676811,0.0037,63270.0,63265.0,0.079028]
[1727104677014,0.01731292,63270.0,63260.0,0.079034]
[1727104677315,0.439821,63271.0,63261.0,0.079033]
[1727104677316,0.37896726,63271.0,63261.0,0.079033]
[1727104677525,0.37808726,63271.0,63261.0,0.079033]
[1727104677720,0.37808726,63271.0,63262.0,0.079032]
[1727104677721,0.45710826,63271.0,63262.0,0.079032]
[1727104678025,0.014,63270.0,63262.0,0.079032]
[1727104678231,0.014,63270.0,63263.0,0.079031]
[1727104678411,0.45790826,63271.0,63263.0,0.079031]
[1727104678610,0.47110826,63271.0,63263.0,0.079031]
[1727104679017,0.47110826,63271.0,63264.0,0.079029]
[1727104679612,0.39208726,63271.0,63269.0,0.079022]
[1727104679816,0.39208726,63271.0,63260.0,0.3608]
[1727104680222,0.014,63270.0,63262.0,0.001]
[1727104680422,0.014,63270.0,63266.0,0.079027]
[1727104680828,0.47890826,63271.0,63269.0,0.001]
[1727104681024,0.19,63270.0,63269.0,0.001]
[1727104681227,0.269022,63270.0,63269.0,0.001]
[1727104681530,0.283022,63270.0,63268.0,0.079024]
[1727104681824,0.079023,63269.0,63268.0,0.079024]
[1727104682019,0.079023,63269.0,63260.0,0.3608]
[1727104682020,0.079027,63266.0,63264.0,0.079029]
[1727104682222,0.3608,63265.0,63264.0,0.079029]
[1727104682423,1.025,63265.0,63251.0,0.0037]
[1727104682724,1.025,63265.0,63249.0,0.079047]
[1727104682725,0.079045,63252.0,63249.0,0.079047]
[1727104683131,0.079046,63251.0,63249.0,0.079047]
[1727104683331,0.269047,63250.0,63249.0,0.079047]
[1727104683535,0.079047,63250.0,63249.0,0.079047]
[1727104683738,0.3608,63253.0,63245.0,0.3608]
[1727104684031,0.269047,63250.0,63241.0,0.3608]
[1727104684616,0.079049,63249.0,63247.0,0.07905]
[1727104685030,0.079049,63248.0,63247.0,0.07905]
[1727104685833,0.191,63250.0,63249.0,0.079048]
[1727104686041,0.001,63250.0,63249.0,0.079048]
[1727104686326,0.086046,63251.0,63249.0,0.079048]
[1727104686632,0.079046,63251.0,63250.0,0.079047]
[1727104686824,0.377588,63253.0,63252.0,0.079044]
[1727104687628,0.016788,63253.0,63252.0,0.079044]
[1727104687823,0.3616,63257.0,63253.0,0.079043]
[1727104687824,0.079042,63255.0,63253.0,0.079043]
[1727104688029,0.37820975,63257.0,63256.0,0.079039]
[1727104688232,0.37820975,63257.0,63248.0,0.3608]
[1727104688233,0.079044,63253.0,63252.0,0.079044]
[1727104688534,0.093044,63253.0,63252.0,0.079044]
[1727104689433,0.102044,63253.0,63252.0,0.080044]
[1727104689933,0.088044,63253.0,63252.0,0.080044]
[1727104690240,0.088044,63253.0,63241.0,0.3608]
[1727104690532,0.269056,63244.0,63243.0,0.079055]
[1727104690721,0.079057,63242.0,63238.0,0.00237197]
[1727104690931,0.079061,63239.0,63238.0,0.08143397]
[1727104691126,0.079057,63243.0,63242.0,0.079056]
[1727104691432,0.3608,63244.0,63243.0,0.079056]
[1727104691622,0.37781719,63244.0,63243.0,0.079056]
[1727104693039,0.39281719,63244.0,63243.0,0.079056]
[1727104693743,0.015,63244.0,63243.0,0.079056]
[1727104695938,0.015,63244.0,63243.0,0.09598835]
[1727104696232,0.00237253,63252.0,63243.0,0.09598835]
[1727104696433,0.00237253,63252.0,63251.0,0.079046]
[1727104696933,0.01940748,63252.0,63251.0,0.079046]
[1727104697135,0.00237253,63252.0,63251.0,0.079046]
[1727104697734,0.01637253,63252.0,63251.0,0.079046]
[1727104698239,0.02237253,63252.0,63251.0,0.080046]
[1727104698428,0.16955624,63252.0,63251.0,0.080046]
[1727104699238,0.03955624,63252.0,63251.0,0.080046]
[1727104700733,0.11860024,63252.0,63251.0,0.080046]
[1727104701436,0.11860024,63252.0,63241.0,0.09637908]
[1727104701437,0.079059,63241.0,63240.0,0.079059]
[1727104701632,0.209059,63241.0,63240.0,0.079059]
[1727104702325,0.13,63245.0,63236.0,0.079064]
[1727104702523,0.3608,63246.0,63245.0,0.079053]
[1727104702923,0.03355624,63252.0,63251.0,0.079046]
[1727104703330,0.09860024,63252.0,63251.0,0.079046]
[1727104704635,0.01955624,63252.0,63251.0,0.079046]
[1727104705752,0.02655624,63252.0,63251.0,0.080046]
[1727104706145,0.04055624,63252.0,63251.0,0.081046]
[1727104706950,0.021,63252.0,63251.0,0.710892]
[1727104707157,0.3608,63263.0,63251.0,0.710892]
[1727104707158,0.07780776,63264.0,63256.0,0.079039]
[1727104707458,0.0037,63265.0,63256.0,0.079039]
[1727104707459,0.01686444,63265.0,63264.0,0.079029]
[1727104707652,0.07780776,63269.0,63268.0,0.079024]
[1727104707852,0.0933,63271.0,63269.0,0.079023]
[1727104708055,0.19,63270.0,63265.0,0.079028]
[1727104708247,0.1569245,63269.0,63265.0,0.079028]
[1727104708451,0.0779005,63268.0,63265.0,0.079028]
[1727104708761,0.0779005,63268.0,63259.0,0.3608]
[1727104708762,0.0779005,63268.0,63266.0,0.079027]
[1727104708949,0.0779005,63268.0,63267.0,0.079026]
[1727104709150,0.079025,63268.0,63265.0,0.080027]
[1727104709346,0.629827,63266.0,63265.0,0.001]
[1727104709547,0.65545171,63266.0,63265.0,0.001]
[1727104709853,0.6554512,63266.0,63265.0,0.001]
[1727104710054,0.079038,63257.0,63256.0,0.001]
[1727104710246,0.269038,63257.0,63256.0,0.079039]
[1727104710849,0.29466633,63257.0,63256.0,0.079039]
[1727104711164,0.269038,63257.0,63256.0,0.079039]
[1727104711744,0.269038,63257.0,63256.0,0.080039]
[1727104711945,0.43869566,63260.0,63259.0,0.079036]
[1727104712146,0.3608,63260.0,63259.0,0.079036]
[1727104712751,0.439834,63260.0,63259.0,0.079036]
[1727104713263,0.3618,63260.0,63259.0,0.080036]
[1727104713962,0.3638,63260.0,63259.0,0.081036]
[1727104714161,0.38096902,63260.0,63259.0,0.081036]
[1727104714664,0.37896902,63260.0,63259.0,0.080036]
[1727104714859,0.46000302,63260.0,63259.0,0.002]
[1727104715851,0.3638,63260.0,63259.0,0.081036]
[1727104716055,0.003,63260.0,63259.0,0.160072]
[1727104716353,0.003,63260.0,63259.0,0.081036]
[1727104717053,0.002,63260.0,63259.0,0.080036]
[1727104717263,0.003,63260.0,63259.0,0.081036]
[1727104717859,0.002,63260.0,63259.0,0.081036]
[1727104718567,0.001,63260.0,63259.0,0.080036]
[1727104718763,0.002,63260.0,63259.0,0.081036]
[1727104719662,0.160068,63260.0,63259.0,0.002]
[1727104719865,0.079048,63250.0,63249.0,0.079048]
[1727104720162,0.07905,63248.0,63246.0,0.3608]
[1727104720353,0.07905,63248.0,63247.0,0.079051]
[1727104721155,0.15695634,63252.0,63250.0,0.079046]
[1727104721357,0.07791134,63252.0,63250.0,0.079046]
[1727104721558,0.07791134,63252.0,63251.0,0.079046]
[1727104721752,0.09347832,63257.0,63247.0,0.080051]
[1727104721753,0.43871134,63256.0,63247.0,0.080051]
[1727104722058,0.001,63250.0,63249.0,0.080048]
[1727104722360,0.001,63250.0,63249.0,0.10476362]
[1727104722862,0.001,63250.0,63249.0,0.080048]
[1727104723363,0.079041,63255.0,63254.0,0.079042]
[1727104723854,0.07791134,63260.0,63259.0,0.079036]
[1727104724051,0.079033,63261.0,63260.0,0.079034]
[1727104724863,0.43871134,63262.0,63254.0,0.0478]
[1727104724864,0.3608,63262.0,63261.0,0.079033]
[1727104725764,0.07791134,63266.0,63260.0,0.001]
[1727104725957,0.440625,63268.0,63266.0,0.079026]
[1727104726162,0.45700695,63268.0,63266.0,0.079026]
[1727104726359,0.45700695,63268.0,63267.0,0.079026]
[1727104727158,0.37798195,63268.0,63267.0,0.079026]
[1727104727368,0.08028293,63275.0,63274.0,0.079017]
[1727104727670,0.36317159,63275.0,63268.0,0.0456]
[1727104727856,0.079018,63274.0,63273.0,0.079018]
[1727104728365,0.38049547,63275.0,63274.0,0.079017]
[1727104728762,0.38249547,63275.0,63274.0,0.080017]
[1727104728958,0.002,63275.0,63274.0,0.440817]
[1727104730259,0.01734949,63279.0,63278.0,0.079012]
[1727104730564,0.079008,63282.0,63280.0,0.079009]
[1727104731371,0.079008,63282.0,63281.0,0.079008]
[1727104731669,0.45675964,63284.0,63282.0,0.079007]
[1727104732059,0.45675964,63284.0,63283.0,0.079006]
[1727104732262,0.079002,63287.0,63285.0,0.079002]
[1727104732458,0.001,63279.0,63278.0,0.271012]
[1727104732671,0.001,63279.0,63278.0,0.871012]
[1727104732877,0.001,63279.0,63278.0,1.424104]
[1727104733173,0.33427097,63292.0,63278.0,1.424104]
[1727104733174,0.00607097,63292.0,63284.0,0.19]
[1727104733363,0.00237097,63292.0,63285.0,0.0938]
[1727104734267,0.00237097,63292.0,63291.0,0.078996]
[1727104734464,0.00437097,63292.0,63291.0,0.078996]
[1727104734672,0.078996,63291.0,63289.0,0.078998]
[1727104734976,0.13437097,63292.0,63285.0,0.172802]
[1727104735179,0.13437097,63292.0,63285.0,0.0456]
[1727104735180,0.079,63288.0,63285.0,0.0456]
[1727104735377,0.079,63288.0,63285.0,0.0466]
[1727104736268,0.079,63288.0,63287.0,0.079001]
[1727104737270,0.079002,63286.0,63285.0,0.002]
[1727104737683,0.079002,63286.0,63285.0,0.001]
[1727104737867,0.124402,63286.0,63285.0,0.001]
[1727104738377,0.079015,63277.0,63276.0,0.079014]
[1727104738568,0.209015,63277.0,63276.0,0.079014]
[1727104739772,0.209015,63277.0,63276.0,0.080014]
[1727104741580,0.22774739,63277.0,63276.0,0.081014]
[1727104741776,0.002,63277.0,63276.0,0.520828]
[1727104741980,0.002,63277.0,63276.0,0.994948]
[1727104742483,0.004,63277.0,63276.0,0.994948]
[1727104742877,0.004,63277.0,63276.0,0.520828]
[1727104743679,0.3645,63290.0,63281.0,0.079008]
[1727104743680,0.443497,63290.0,63281.0,0.079008]
[1727104743873,0.439797,63290.0,63285.0,0.13]
[1727104744283,0.3608,63290.0,63283.0,0.3608]
[1727104744582,0.3608,63290.0,63289.0,0.078998]
[1727104744973,0.002,63290.0,63286.0,0.079002]
[1727104745184,0.002,63290.0,63289.0,0.078998]
[1727104745978,0.002,63290.0,63289.0,0.079998]
[1727104746581,0.00237097,63292.0,63291.0,0.078996]
[1727104747885,0.00237097,63292.0,63291.0,0.079996]
[1727104748587,0.08136497,63292.0,63291.0,0.079996]
[1727104748883,0.08136497,63292.0,63291.0,0.080996]
[1727104749877,0.00237097,63292.0,63291.0,0.080996]
[1727104750076,0.08136497,63292.0,63291.0,0.080996]
[1727104751075,0.16035897,63292.0,63291.0,0.002]
[1727104751575,0.23935297,63292.0,63291.0,0.002]
[1727104751770,0.23935297,63292.0,63277.0,0.079011]
[1727104751771,0.079012,63278.0,63277.0,0.079011]
[1727104752567,0.079012,63278.0,63270.0,0.3608]
[1727104752568,0.079018,63274.0,63273.0,0.079017]
[1727104752983,0.077018,63274.0,63273.0,0.079017]
[1727104753484,0.079022,63270.0,63269.0,0.079022]
[1727104754990,0.080018,63274.0,63273.0,0.079018]
[1727104755490,0.20838157,63274.0,63264.0,0.3608]
[1727104755684,0.079031,63263.0,63261.0,0.00237107]
[1727104755889,0.079032,63262.0,63261.0,0.00237107]
[1727104757090,0.082032,63262.0,63261.0,0.00337107]
[1727104758381,0.003,63262.0,63261.0,0.08240407]
[1727104758595,0.005,63262.0,63261.0,0.27340407]
[1727104759789,0.005,63262.0,63261.0,1.34764407]
[1727104759790,0.004,63262.0,63261.0,1.34764407]
[1727104760490,0.002,63262.0,63261.0,1.42567707]
[1727104760688,0.004,63262.0,63261.0,1.42667707]
[1727104760878,0.004,63262.0,63261.0,0.95243707]
[1727104761079,0.004,63262.0,63261.0,1.42667707]
[1727104761698,0.079018,63274.0,63269.0,0.079022]
[1727104761891,0.079018,63273.0,63269.0,0.079022]
[1727104762083,0.079018,63273.0,63270.0,0.079022]
[1727104762482,0.079018,63273.0,63265.0,0.3608]
[1727104762679,0.079018,63273.0,63272.0,0.079019]
[1727104763088,0.079015,63276.0,63273.0,0.079018]
[1727104763685,0.079014,63277.0,63276.0,0.079014]
[1727104764189,0.079005,63284.0,63282.0,0.079006]
[1727104764692,0.079005,63284.0,63283.0,0.079006]
[1727104764890,0.01680311,63284.0,63283.0,0.079006]
[1727104765076,0.3608,63285.0,63284.0,0.079004]
[1727104767587,0.3628,63285.0,63284.0,0.080004]
[1727104767988,0.3638,63285.0,63284.0,0.081004]
[1727104768380,0.442803,63285.0,63284.0,0.081004]
[1727104768890,0.521806,63285.0,63284.0,0.002]